[Event "EYCC Open U14 2018"]
[Site "Riga"]
[Date "2018.08.20"]
[Round "1"]
[White "Bjerre, Jonas Buhl"]
[Black "Schlegel, Igor"]
[Result "1-0"]
[ECO "B90"]
[WhiteElo "2423"]
[BlackElo "1979"]
[Annotator "NA"]
[PlyCount "57"]
[EventDate "2018.08.20"]
[EventType "swiss"]
[EventCountry "LAT"]
[SourceTitle "playchess.com"]
[Source "ChessBase"]
[SourceQuality "1"]
[TimeControl "40/5400+30:1800+30"]

1. e4 {[%emt 0:00:00]} c5 {[%emt 0:00:00]} 2. Nf3 {[%emt 0:00:02]} d6 {[%emt 0:00:00]} 3. d4 {[%emt 0:03:20]} cxd4 {[%emt 0:00:00]} 4. Nxd4 {[%emt 0:00:04]} Nf6 {[%emt 0:00:00]} 5. Nc3 {[%emt 0:00:32]} a6 {[%emt 0:00:00]} 6. f3 {[%emt 0:01:29]} e5 {[%emt 0:01:35]} 7. Nb3 {[%emt 0:00:23]} Be6 {[%emt 0:00:22]} 8. Be3 {[%emt 0:01:11]} h5 {[%emt 0:04:06]} 9. Nd5 {[%emt 0:02:08]} Nbd7 {[%emt 0:00:51]} 10. c4 {[%emt 0:09:32] LiveBook: 4 Games} Rc8 11. Qd2 {[%emt 0:06:53]} Nc5 {[%emt 0:28:27]} 12. Nxc5 {[%emt 0:05:49]} dxc5 {[%emt 0:00:09]} 13. O-O-O $14 {[%emt 0:07:38]} Nxd5 {[%emt 0:08:19]} 14. exd5 {[%emt 0:04:43]} Bf5 {[%emt 0:00:30]} 15. f4 {[%emt 0:04:59]} Bd6 {[%emt 0:09:14]} 16. fxe5 {[%emt 0:03:43]} Bxe5 {[%emt 0:00:11]} 17. Bf4 {[%emt 0:02:41]} Bf6 {[%emt 0:08:45]} 18. Re1+ {[%emt 0:03:10]} Kf8 {[%emt 0:00:26]} 19. Bd3 {[%emt 0:04:02]} Bxd3 {[%emt 0:04:41]} 20. Qxd3 {[%emt 0:00:09]} b5 {[%emt 0:03:41]} 21. d6 {[%emt 0:07:13]} Qd7 {[%emt 0:10:21]} 22. Rhf1 {[%emt 0:07:25]} bxc4 {[%emt 0:12:45]} 23. Qxc4 {[%emt 0:01:14]} Rb8 {[%emt 0:00:20]} 24. Re7 {[%emt 0:05:18]} Bxb2+ {[%emt 0:03:38]} 25. Kd2 {[%emt 0:02:54]} Qf5 {[%emt 0:00:49]} 26. Be3 {[%emt 0:02:02]} Rb4 {[%emt 0:02:37]} 27. Rxf5 {[%emt 0:02:34]} Rxc4 {[%emt 0:00:05]} 28. Rexf7+ {[%emt 0:00:26]} Kg8 {[%emt 0:00:32]} 29. Rf8+ {[%emt 0:00:11]} 1-0

[Event "EYCC Open U14 2018"]
[Site "Riga"]
[Date "2018.08.20"]
[Round "1"]
[White "Makarian, Rudik"]
[Black "Kharitonov, Egor"]
[Result "1-0"]
[ECO "B41"]
[WhiteElo "2378"]
[BlackElo "2387"]
[Annotator "NA"]
[PlyCount "75"]
[EventDate "2018.08.20"]
[EventType "swiss"]
[EventCountry "LAT"]
[SourceTitle "playchess.com"]
[Source "ChessBase"]
[SourceQuality "1"]
[TimeControl "40/5400+30:1800+30"]

1. e4 {[%emt 0:00:00]} c5 {[%emt 0:00:00]} 2. Nf3 {[%emt 0:00:00]} e6 {[%emt 0:00:00]} 3. d4 {[%emt 0:00:00]} cxd4 {[%emt 0:00:00]} 4. Nxd4 {[%emt 0:00:00]} a6 {[%emt 0:00:00]} 5. c4 {[%emt 0:00:00]} Nf6 {[%emt 0:00:00]} 6. Nc3 {[%emt 0:00:03]} Bb4 {[%emt 0:00:00]} 7. Qd3 {[%emt 0:00:26]} Qc7 {[%emt 0:28:18] LiveBook: 77 Games} 8. a3 {[%emt 0:00:09]} Be7 {[%emt 0:00:21]} 9. Be2 {[%emt 0:07:45]} O-O {[%emt 0:01:26]} 10. O-O {[%emt 0:00:12]} d6 {[%emt 0:00:48]} 11. Be3 {[%emt 0:06:18]} Nbd7 {[%emt 0:00:33]} 12. Qd2 {[%emt 0:00:08]} b6 {[%emt 0:01:34]} 13. Rac1 {[%emt 0:00:05]} Bb7 {[%emt 0:00:46]} 14. f3 $16 {[%emt 0:00:07]} Rac8 {[%emt 0:00:25]} 15. Rfd1 {[%emt 0:00:09]} Rfe8 {[%emt 0:04:48]} 16. b4 {[%emt 0:02:03]} Qb8 {[%emt 0:02:57]} 17. Nb3 {[%emt 0:02:26]} Bd8 {[%emt 0:09:42]} 18. Kh1 {[%emt 0:05:16]} Bc7 {[%emt 0:00:35]} 19. Bf4 {[%emt 0:00:03]} Ne5 {[%emt 0:01:01]} 20. Bxe5 {[%emt 0:00:04]} dxe5 {[%emt 0:00:10]} 21. c5 {[%emt 0:00:01]} Red8 {[%emt 0:09:50]} 22. Qe3 {[%emt 0:02:19]} b5 {[%emt 0:02:00]} 23. a4 {[%emt 0:15:55]} Bc6 {[%emt 0:06:53]} 24. axb5 {[%emt 0:00:56]} axb5 {[%emt 0:00:06]} 25. Qf2 {[%emt 0:05:11]} Qb7 {[%emt 0:00:22]} 26. Qf1 {[%emt 0:00:17]} Rb8 {[%emt 0:00:32]} 27. Rxd8+ {[%emt 0:02:19]} Bxd8 {[%emt 0:00:15]} 28. Ra1 {[%emt 0:00:15]} Ne8 {[%emt 0:03:24]} 29. Na5 {[%emt 0:01:56]} Bxa5 {[%emt 0:00:08]} 30. Rxa5 {[%emt 0:00:07]} Nc7 {[%emt 0:00:18]} 31. Qa1 {[%emt 0:00:46]} Qc8 {[%emt 0:02:50]} 32. Ra7 {[%emt 0:02:27]} h6 {[%emt 0:05:20]} 33. Qa5 {[%emt 0:22:35]} Rb7 {[%emt 0:03:06]} 34. Rxb7 {[%emt 0:01:23]} Qxb7 {[%emt 0:00:23]} 35. Qb6 {[%emt 0:00:44]} Qxb6 {[%emt 0:01:21]} 36. cxb6 {[%emt 0:00:53]} Na8 {[%emt 0:00:05]} 37. Bxb5 {[%emt 0:00:11]} Bxb5 {[%emt 0:00:06]} 38. b7 {[%emt 0:00:04]} 1-0

[Event "EYCC Open U14 2018"]
[Site "Riga"]
[Date "2018.08.20"]
[Round "1"]
[White "Oglaza, Oskar"]
[Black "Czernek, Tymon"]
[Result "1-0"]
[ECO "A20"]
[WhiteElo "2364"]
[BlackElo "1969"]
[Annotator "NA"]
[PlyCount "117"]
[EventDate "2018.08.20"]
[EventType "swiss"]
[EventCountry "LAT"]
[SourceTitle "playchess.com"]
[Source "ChessBase"]
[SourceQuality "1"]
[TimeControl "40/5400+30:1800+30"]

1. c4 {[%emt 0:00:00]} e5 {[%emt 0:00:00]} 2. g3 {[%emt 0:00:00]} Nf6 {[%emt 0:00:00]} 3. Bg2 {[%emt 0:00:00]} c6 {[%emt 0:00:00]} 4. d4 {[%emt 0:00:04]} exd4 {[%emt 0:00:57]} 5. Qxd4 {[%emt 0:00:09]} d5 {[%emt 0:00:58]} 6. Nf3 {[%emt 0:00:27]} Be7 {[%emt 0:01:29]} 7. cxd5 {[%emt 0:01:08]} cxd5 {[%emt 0:00:43]} 8. O-O {[%emt 0:01:32]} O-O {[%emt 0:00:56]} 9. Nc3 {[%emt 0:00:24]} Nc6 {[%emt 0:01:05]} 10. Qa4 {[%emt 0:00:23]} Be6 {[%emt 0:06:11]} 11. Be3 {[%emt 0:09:24]} Ng4 {[%emt 0:03:05]} 12. Bd4 {[%emt 0:02:17]} Nxd4 {[%emt 0:02:14]} 13. Nxd4 {[%emt 0:00:45]} Nf6 {[%emt 0:00:54] LiveBook: 3 Games} 14. Qb3 {[%emt 0:01:46]} Bc5 {[%emt 0:01:47]} 15. Rad1 {[%emt 0:00:57]} Qb6 $14 {[%emt 0:02:41]} 16. e3 {[%emt 0:06:25]} Rfd8 {[%emt 0:02:06]} 17. Qxb6 {[%emt 0:03:03]} Bxb6 {[%emt 0:00:05]} 18. Na4 {[%emt 0:00:40]} Nd7 {[%emt 0:07:18]} 19. Nb5 {[%emt 0:00:51]} Ne5 {[%emt 0:10:19]} 20. Nxb6 {[%emt 0:10:42]} axb6 {[%emt 0:00:05]} 21. Nc3 {[%emt 0:00:04]} Kf8 {[%emt 0:03:37]} 22. b3 {[%emt 0:06:04]} b5 {[%emt 0:02:15]} 23. Rd2 {[%emt 0:28:26]} b4 {[%emt 0:04:51]} 24. Ne2 {[%emt 0:03:10]} Ra5 {[%emt 0:03:26]} 25. e4 {[%emt 0:01:49]} Bh3 {[%emt 0:07:27]} 26. Rc1 {[%emt 0:14:43]} Ke8 {[%emt 0:04:00]} 27. f4 {[%emt 0:03:11]} Bxg2 {[%emt 0:00:07]} 28. Kxg2 {[%emt 0:00:07]} Nc6 {[%emt 0:01:06]} 29. e5 {[%emt 0:00:48]} d4 {[%emt 0:05:45]} 30. Rc4 {[%emt 0:00:30]} Rad5 {[%emt 0:00:43]} 31. Kf2 {[%emt 0:02:10]} f6 {[%emt 0:02:46]} 32. exf6 {[%emt 0:00:07]} gxf6 {[%emt 0:00:03]} 33. g4 {[%emt 0:00:58]} h5 {[%emt 0:01:54]} 34. h3 {[%emt 0:00:06]} hxg4 {[%emt 0:00:35]} 35. hxg4 {[%emt 0:00:04]} Kf7 {[%emt 0:00:11]} 36. Ng3 {[%emt 0:01:01]} Rh8 {[%emt 0:01:32]} 37. Kf3 {[%emt 0:01:14]} Rh3 {[%emt 0:02:38]} 38. Rc1 {[%emt 0:00:27]} Rd8 {[%emt 0:09:12]} 39. Rh1 {[%emt 0:01:10]} Rxh1 {[%emt 0:01:10]} 40. Nxh1 {[%emt 0:00:00]} Na7 {[%emt 0:00:00]} 41. Ng3 {[%emt 0:02:20]} Nb5 {[%emt 0:02:05]} 42. Nf5 {[%emt 0:01:22]} Ke6 {[%emt 0:01:42]} 43. Ke4 {[%emt 0:01:37]} d3 {[%emt 0:10:11]} 44. Ke3 {[%emt 0:00:40]} Rg8 {[%emt 0:02:09]} 45. Nh6 {[%emt 0:10:22]} Rh8 {[%emt 0:00:12]} 46. g5 {[%emt 0:00:12]} f5 {[%emt 0:12:19]} 47. Rxd3 {[%emt 0:01:50]} Nc3 {[%emt 0:00:27]} 48. Kf3 {[%emt 0:00:51]} Rf8 {[%emt 0:06:23]} 49. Re3+ {[%emt 0:00:23]} Ne4 {[%emt 0:00:11]} 50. Nxf5 {[%emt 0:00:07]} Kxf5 {[%emt 0:00:27]} 51. Rxe4 {[%emt 0:00:05]} Rh8 {[%emt 0:00:10]} 52. Re5+ {[%emt 0:00:05]} Kg6 {[%emt 0:00:05]} 53. Kg4 {[%emt 0:00:04]} Rh2 {[%emt 0:00:05]} 54. Rb5 {[%emt 0:00:24]} Rg2+ {[%emt 0:00:24]} 55. Kf3 {[%emt 0:00:06]} Rxa2 {[%emt 0:00:06]} 56. Rb6+ {[%emt 0:00:06]} Kf7 {[%emt 0:00:04]} 57. Rxb7+ {[%emt 0:00:04]} Kg6 {[%emt 0:00:14]} 58. Rb6+ {[%emt 0:00:04]} Kf7 {[%emt 0:00:05]} 59. Rxb4 {[%emt 0:00:04]} 1-0

[Event "EYCC Open U14 2018"]
[Site "Riga"]
[Date "2018.08.20"]
[Round "1"]
[White "Subelj, Jan"]
[Black "Tobak, Mikhail"]
[Result "0-1"]
[ECO "B05"]
[WhiteElo "2341"]
[BlackElo "1954"]
[Annotator "NA"]
[PlyCount "140"]
[EventDate "2018.08.20"]
[EventType "swiss"]
[EventCountry "LAT"]
[SourceTitle "playchess.com"]
[Source "ChessBase"]
[SourceQuality "1"]
[TimeControl "40/5400+30:1800+30"]

1. e4 {[%emt 0:00:00] Cox,J} Nf6 {[%emt 0:00:00]} 2. e5 {[%emt 0:00:00]} Nd5 {[%emt 0:00:00]} 3. d4 {[%emt 0:00:00]} d6 {[%emt 0:00:00]} 4. Nf3 {[%emt 0:00:23]} Bg4 {[%emt 0:00:06]} 5. Be2 {[%emt 0:00:05]} c6 {[%emt 0:00:12]} 6. O-O {[%emt 0:01:05]} Bxf3 {[%emt 0:00:45]} 7. Bxf3 {[%emt 0:00:02]} dxe5 {[%emt 0:00:29]} 8. dxe5 {[%emt 0:00:09]} e6 {[%emt 0:00:08]} 9. c4 {[%emt 0:12:17]} Ne7 {[%emt 0:01:26]} 10. Qxd8+ {[%emt 0:24:32]} Kxd8 {[%emt 0:00:06] LiveBook: 33 Partien} 11. Be4 {[%emt 0:03:20]} Nd7 {[%emt 0:02:55]} 12. f4 {[%emt 0:00:47]} Nf5 {[%emt 0:00:57] B05: Alekhine's Defence: 4 Nf3 Bg4} 13. Nc3 {[%emt 0:01:50]} Kc7 {[%emt 0:01:28]} 14. g3 $146 {[%emt 0:08:41]} ({Predecessor:} 14. g4 Bc5+ 15. Kg2 Ne3+ 16. Bxe3 Bxe3 17. Rf3 Bc5 18. Bc2 Rad8 19. Ne4 Be7 20. Rd1 {½-½ (44) Kovalevskaya,E (2457)-Kovacevic,V (2512) Solin 2005 CBM 111 [Cox,J]}) 14... Bc5+ {[%emt 0:01:01]} 15. Kg2 {[%emt 0:00:11]} Bd4 {[%emt 0:02:11]} 16. Ne2 $11 {[%emt 0:03:37]} Ne3+ {[%emt 0:01:20]} 17. Bxe3 {[%emt 0:00:31]} Bxe3 {[%emt 0:00:16]} 18. Kf3 {[%emt 0:05:04]} Bc5 {[%emt 0:01:00]} 19. Rad1 {[%emt 0:06:54]} a5 {[%emt 0:02:34]} 20. Bc2 {[%emt 0:01:26]} Nb6 {[%emt 0:02:49]} 21. b3 {[%emt 0:00:52]} a4 {[%emt 0:01:03]} 22. Nc3 {[%emt 0:00:09]} axb3 {[%emt 0:00:39]} 23. axb3 {[%emt 0:00:17]} Bb4 {[%emt 0:00:40]} 24. Ne4 {[%emt 0:00:26]} Ra2 {[%emt 0:03:51]} 25. Rf2 {[%emt 0:00:12]} h6 {[%emt 0:02:39]} 26. g4 {[%emt 0:09:10]} Rd8 {[%emt 0:04:37]} 27. Rxd8 {[%emt 0:00:27]} Kxd8 {[%emt 0:00:08]} 28. h4 {[%emt 0:04:11]} Nd7 {[%emt 0:01:35]} 29. Nd6 {[%emt 0:04:35]} Bxd6 {[%emt 0:02:38]} 30. exd6 {[%emt 0:00:16]} Nc5 {[%emt 0:00:26]} 31. f5 {[%emt 0:05:55]} Kd7 {[%emt 0:01:20]} 32. g5 {[%emt 0:02:00]} hxg5 {[%emt 0:01:43]} 33. h5 {[%emt 0:02:32]} f6 {[%emt 0:02:09]} 34. b4 {[%emt 0:01:42]} Ra3+ {[%emt 0:03:19]} 35. Kg4 {[%emt 0:00:21]} Na6 {[%emt 0:02:56]} 36. fxe6+ {[%emt 0:00:16]} Kxd6 {[%emt 0:00:41]} 37. Bf5 {[%emt 0:00:49]} Ke7 {[%emt 0:01:49]} 38. Rd2 {[%emt 0:00:43]} Nb8 {[%emt 0:00:28]} 39. h6 {[%emt 0:00:45]} gxh6 {[%emt 0:01:36]} 40. Rh2 {[%emt 0:00:00]} Rc3 {[%emt 0:00:00]} 41. Rxh6 {[%emt 0:00:27]} Rxc4+ {[%emt 0:03:16]} 42. Kg3 {[%emt 0:01:54]} Rh4 {[%emt 0:00:56]} 43. Rg6 {[%emt 0:00:08]} Rh8 {[%emt 0:02:35]} 44. Rg7+ {[%emt 0:03:08]} Kd6 {[%emt 0:00:27]} 45. Rf7 {[%emt 0:01:13]} Re8 {[%emt 0:04:57]} 46. Rxb7 {[%emt 0:00:12]} Na6 {[%emt 0:01:13]} 47. Rd7+ {[%emt 0:00:13]} Ke5 {[%emt 0:00:06]} 48. Kg4 {[%emt 0:00:19]} Nxb4 {[%emt 0:00:24]} 49. Rd1 {[%emt 0:03:04]} Nd5 {[%emt 0:00:33]} 50. Re1+ {[%emt 0:00:23]} Kd6 {[%emt 0:01:13]} 51. Rd1 {[%emt 0:03:20]} Rh8 {[%emt 0:00:30]} 52. Kg3 {[%emt 0:01:22]} Ke5 {[%emt 0:00:23]} 53. Bg4 {[%emt 0:00:18]} f5 {[%emt 0:00:37]} 54. Re1+ {[%emt 0:01:04]} Kf6 {[%emt 0:00:07]} 55. Bf3 {[%emt 0:00:35]} Re8 {[%emt 0:00:19]} 56. Rh1 {[%emt 0:00:17]} Rxe6 {[%emt 0:00:28]} 57. Rh6+ {[%emt 0:00:08]} Ke5 {[%emt 0:00:06]} 58. Rh5 Rg6 59. Rh8 {[%emt 0:01:04]} f4+ {[%emt 0:00:44]} 60. Kh3 {[%emt 0:00:44]} Ne3 {[%emt 0:01:03]} 61. Bh5 {[%emt 0:01:07]} g4+ {[%emt 0:01:55]} 62. Kh2 {[%emt 0:00:20]} Rg5 {[%emt 0:00:22]} 63. Kg1 {[%emt 0:00:45]} f3 {[%emt 0:00:38]} 64. Kf2 {[%emt 0:00:17]} g3+ {[%emt 0:00:19]} 65. Kxe3 {[%emt 0:00:11]} g2 {[%emt 0:00:08]} 66. Re8+ {[%emt 0:00:04]} Kf6 {[%emt 0:00:33]} 67. Rf8+ {[%emt 0:00:06]} Kg7 {[%emt 0:00:07]} 68. Rf7+ {[%emt 0:00:04]} Kg8 {[%emt 0:00:06]} 69. Rxf3 {[%emt 0:00:48]} g1=Q+ {[%emt 0:00:06]} 70. Kf4 {[%emt 0:00:02]} Rxh5 {[%emt 0:00:15]} 0-1

[Event "EYCC Open U14 2018"]
[Site "Riga"]
[Date "2018.08.20"]
[Round "1"]
[White "Pogosyan, Stefan"]
[Black "Malikov, Farid"]
[Result "1-0"]
[ECO "E63"]
[WhiteElo "2331"]
[BlackElo "1943"]
[Annotator "NA"]
[PlyCount "73"]
[EventDate "2018.08.20"]
[EventType "swiss"]
[EventCountry "LAT"]
[SourceTitle "playchess.com"]
[Source "ChessBase"]
[SourceQuality "1"]
[TimeControl "40/5400+30:1800+30"]

1. d4 {[%emt 0:00:00]} Nf6 {[%emt 0:00:00]} 2. c4 {[%emt 0:00:00]} g6 {[%emt 0:00:00]} 3. Nc3 {[%emt 0:00:00]} Bg7 {[%emt 0:00:02]} 4. g3 {[%emt 0:00:07]} O-O {[%emt 0:00:35]} 5. Bg2 {[%emt 0:00:09]} d6 {[%emt 0:00:06]} 6. Nf3 {[%emt 0:00:15]} Nc6 {[%emt 0:00:08]} 7. O-O {[%emt 0:00:12]} a6 {[%emt 0:00:13]} 8. d5 {[%emt 0:02:39]} Na5 {[%emt 0:00:23]} 9. Nd2 {[%emt 0:01:24]} c5 {[%emt 0:00:06]} 10. Qc2 {[%emt 0:00:32]} Bd7 {[%emt 0:01:31]} 11. b3 {[%emt 0:00:30]} b5 {[%emt 0:00:52]} 12. Bb2 {[%emt 0:00:16]} Rb8 {[%emt 0:03:39]} 13. Rab1 {[%emt 0:02:14]} e6 {[%emt 0:04:17]} 14. e4 {[%emt 0:04:23]} exd5 {[%emt 0:00:48]} 15. cxd5 {[%emt 0:00:11]} Re8 $14 {[%emt 0:05:51]} 16. Nd1 {[%emt 0:02:17]} Rc8 {[%emt 0:05:39]} 17. Ne3 {[%emt 0:06:01]} c4 {[%emt 0:07:23]} 18. bxc4 {[%emt 0:08:28]} Nxc4 {[%emt 0:00:37]} 19. Nexc4 {[%emt 0:01:14]} bxc4 {[%emt 0:00:06]} 20. Bc3 {[%emt 0:00:10]} Nh5 {[%emt 0:21:20]} 21. Rfc1 {[%emt 0:02:34]} Bxc3 {[%emt 0:02:44]} 22. Qxc3 {[%emt 0:00:06]} Bb5 {[%emt 0:04:20]} 23. Rb4 {[%emt 0:15:03]} Qa5 {[%emt 0:05:29]} 24. Bh3 {[%emt 0:07:48]} f5 {[%emt 0:02:56]} 25. exf5 {[%emt 0:04:46]} Bd7 {[%emt 0:02:08]} 26. fxg6 {[%emt 0:00:39]} Bxh3 {[%emt 0:00:14]} 27. gxh7+ {[%emt 0:00:08]} Kxh7 28. Rb7+ {[%emt 0:00:05]} Qc7 {[%emt 0:00:31]} 29. Rxc7+ {[%emt 0:01:24]} Rxc7 {[%emt 0:00:12]} 30. Qd4 {[%emt 0:03:11]} Rce7 {[%emt 0:01:48]} 31. Nf3 {[%emt 0:01:16]} Bf5 {[%emt 0:01:19]} 32. Qh4 {[%emt 0:00:27]} Bg6 {[%emt 0:00:07]} 33. g4 {[%emt 0:00:04]} Rg7 {[%emt 0:00:29]} 34. Ng5+ {[%emt 0:00:15]} Kh6 {[%emt 0:00:05]} 35. gxh5 {[%emt 0:00:10]} Bd3 {[%emt 0:00:24]} 36. f4 {[%emt 0:00:20]} Reg8 {[%emt 0:00:24]} 37. Re1 {[%emt 0:01:35]} 1-0

[Event "EYCC Open U14 2018"]
[Site "Riga"]
[Date "2018.08.20"]
[Round "1"]
[White "Sismeiro, Miguel"]
[Black "Tsoi, Dmitry"]
[Result "0-1"]
[ECO "C41"]
[WhiteElo "1974"]
[BlackElo "2393"]
[Annotator "NA"]
[PlyCount "94"]
[EventDate "2018.08.20"]
[EventType "swiss"]
[EventCountry "LAT"]
[SourceTitle "playchess.com"]
[Source "ChessBase"]
[SourceQuality "1"]
[TimeControl "40/5400+30:1800+30"]

1. e4 e5 2. Nf3 d6 3. d4 exd4 4. Qxd4 Nc6 {LiveBook: 110 Games} 5. Bb5 Bd7 6. Bxc6 Bxc6 7. Bg5 Qd7 8. Nc3 h6 9. Bh4 Rh7 $1 10. O-O-O g5 11. Bg3 $14 f5 12. exf5 Qxf5 13. Rhe1+ Re7 14. Rxe7+ Nxe7 15. Re1 Qf7 16. Kb1 Bg7 17. Qe3 Bxf3 18. gxf3 Bxc3 19. Qxc3 O-O-O 20. Qe3 Nc6 21. f4 Rd7 22. Qe8+ Qxe8 23. Rxe8+ Rd8 24. Re6 Rg8 25. c3 h5 26. fxg5 Rxg5 27. Kc2 Rf5 28. Kd3 Kd7 29. Rh6 Nd8 30. Rh7+ Kc6 31. Re7 a5 32. b3 a4 33. b4 Rd5+ 34. Ke3 Rd1 35. Ke2 Ra1 36. Kd3 Rxa2 37. Re1 Nf7 38. f4 Nh6 39. Rb1 a3 40. Kc4 Rb2 41. Ra1 a2 42. Kd3 Kb5 43. h3 Nf5 44. Be1 d5 45. Bd2 Ka4 46. c4 d4 47. Bc1 Kb3 {Kxd4} 0-1

[Event "EYCC Open U14 2018"]
[Site "Riga"]
[Date "2018.08.20"]
[Round "1"]
[White "Fiedorek, Michal"]
[Black "Morgunov, Marc"]
[Result "0-1"]
[ECO "B90"]
[WhiteElo "1970"]
[BlackElo "2373"]
[Annotator "NA"]
[PlyCount "160"]
[EventDate "2018.08.20"]
[EventType "swiss"]
[EventCountry "LAT"]
[SourceTitle "playchess.com"]
[Source "ChessBase"]
[SourceQuality "1"]
[TimeControl "40/5400+30:1800+30"]

1. e4 {[%emt 0:00:00]} c5 {[%emt 0:00:00]} 2. Nf3 {[%emt 0:00:00]} d6 {[%emt 0:00:00]} 3. d4 {[%emt 0:00:00]} cxd4 {[%emt 0:00:00]} 4. Nxd4 {[%emt 0:00:06]} Nf6 {[%emt 0:00:00]} 5. Nc3 {[%emt 0:00:18]} a6 {[%emt 0:00:00]} 6. Be3 {[%emt 0:01:24]} e5 {[%emt 0:00:00]} 7. Nf3 {[%emt 0:00:12]} Be7 {[%emt 0:00:02]} 8. Bc4 {[%emt 0:00:26]} O-O {[%emt 0:00:09]} 9. O-O {[%emt 0:00:21]} Qc7 {[%emt 0:00:18]} 10. Bb3 {[%emt 0:01:07]} Be6 {[%emt 0:00:08]} 11. Qe2 {[%emt 0:01:22]} Nc6 {[%emt 0:00:13]} 12. Rfd1 {[%emt 0:01:44]} Rac8 {[%emt 0:03:48]} 13. Bg5 {[%emt 0:14:39]} Na5 {[%emt 0:00:43]} 14. Bxf6 {[%emt 0:06:31]} Bxf6 {[%emt 0:00:07] LiveBook: 12 Games} 15. Ne1 $11 {[%emt 0:00:18]} Nc4 {[%emt 0:28:31]} 16. Bxc4 {[%emt 0:15:54]} Bxc4 {[%emt 0:05:14]} 17. Qe3 {[%emt 0:00:31]} Bd8 {[%emt 0:07:24]} 18. Nd5 {[%emt 0:06:57]} Qc6 {[%emt 0:04:42]} 19. Qd2 {[%emt 0:15:55]} f5 {[%emt 0:08:13]} 20. exf5 {[%emt 0:18:03]} Rxf5 {[%emt 0:04:20]} 21. c3 {[%emt 0:02:41]} Bxd5 {[%emt 0:15:27]} 22. Qxd5+ {[%emt 0:00:08]} Qxd5 {[%emt 0:00:02]} 23. Rxd5 {[%emt 0:00:09]} Bb6 {[%emt 0:00:04]} 24. Nf3 {[%emt 0:02:27]} Rf6 {[%emt 0:00:46]} 25. Re1 {[%emt 0:02:15]} Rc4 {[%emt 0:03:57]} 26. Re2 {[%emt 0:02:41]} Rcf4 {[%emt 0:01:01]} 27. Kf1 {[%emt 0:01:38]} g5 {[%emt 0:02:04]} 28. h3 {[%emt 0:03:20]} h5 {[%emt 0:02:05]} 29. Rdd2 {[%emt 0:01:02]} g4 {[%emt 0:02:05]} 30. Ng5 {[%emt 0:00:35]} d5 {[%emt 0:02:23]} 31. Ke1 {[%emt 0:00:47]} R4f5 {[%emt 0:01:02]} 32. h4 {[%emt 0:00:27]} e4 {[%emt 0:00:49]} 33. Rc2 {[%emt 0:00:43]} g3 {[%emt 0:03:35]} 34. f3 {[%emt 0:00:38]} e3 {[%emt 0:00:06]} 35. Nh3 {[%emt 0:00:42]} Rd6 {[%emt 0:00:33]} 36. Rc1 {[%emt 0:00:30]} Rc6 {[%emt 0:02:32]} 37. Rec2 {[%emt 0:00:40]} Rc4 {[%emt 0:01:09]} 38. f4 {[%emt 0:00:41]} Kf7 {[%emt 0:01:45]} 39. Ke2 {[%emt 0:00:17]} Bc7 {[%emt 0:02:17]} 40. Kxe3 {[%emt 0:00:00]} Bxf4+ {[%emt 0:00:00]} 41. Nxf4 {[%emt 0:01:44]} Rcxf4 {[%emt 0:02:48]} 42. Rh1 {[%emt 0:11:12]} Rf2 {[%emt 0:05:21]} 43. Rhc1 {[%emt 0:00:54]} R5f4 {[%emt 0:00:14]} 44. b3 {[%emt 0:02:24]} b5 {[%emt 0:01:51]} 45. a3 {[%emt 0:01:11]} Kf6 {[%emt 0:01:43]} 46. Rxf2 {[%emt 0:08:59]} Rxf2 {[%emt 0:00:13]} 47. c4 {[%emt 0:01:08]} dxc4 {[%emt 0:04:08]} 48. bxc4 {[%emt 0:00:07]} Rxg2 {[%emt 0:01:48]} 49. cxb5 {[%emt 0:01:01]} axb5 {[%emt 0:00:13]} 50. Rb1 {[%emt 0:05:24]} Rh2 {[%emt 0:02:20]} 51. Kf3 {[%emt 0:02:28]} Rxh4 {[%emt 0:00:53]} 52. Kxg3 {[%emt 0:00:29]} Rg4+ {[%emt 0:00:06]} 53. Kh3 {[%emt 0:00:35]} Rg5 {[%emt 0:00:03]} 54. Kh4 {[%emt 0:00:29]} Rc5 {[%emt 0:00:09]} 55. Rf1+ {[%emt 0:00:36]} Ke6 {[%emt 0:00:11]} 56. Rd1 {[%emt 0:00:35]} Rd5 {[%emt 0:00:21]} 57. Rc1 {[%emt 0:00:27]} Kd6 {[%emt 0:00:05]} 58. Rc8 {[%emt 0:00:20]} Rc5 {[%emt 0:01:42]} 59. Ra8 {[%emt 0:00:24]} Kc6 {[%emt 0:00:50]} 60. Ra6+ {[%emt 0:00:27]} Kb7 {[%emt 0:00:33]} 61. Rg6 {[%emt 0:00:24]} Rc3 {[%emt 0:00:20]} 62. Kxh5 {[%emt 0:00:36]} Rxa3 {[%emt 0:00:10]} 63. Kg4 {[%emt 0:00:31]} Ra6 {[%emt 0:00:48]} 64. Rg7+ {[%emt 0:00:32]} Kb6 {[%emt 0:00:10]} 65. Kf3 {[%emt 0:00:16]} Ka5 {[%emt 0:00:07]} 66. Ke3 {[%emt 0:00:56]} Rd6 {[%emt 0:00:40]} 67. Rb7 {[%emt 0:00:24]} Ka4 {[%emt 0:00:08]} 68. Ra7+ {[%emt 0:00:24]} Kb3 {[%emt 0:00:05]} 69. Rb7 {[%emt 0:00:14]} b4 {[%emt 0:00:04]} 70. Rc7 {[%emt 0:00:27]} Ka3 {[%emt 0:00:09]} 71. Ra7+ {[%emt 0:00:19]} Kb2 {[%emt 0:00:06]} 72. Rb7 {[%emt 0:00:44]} b3 {[%emt 0:00:05]} 73. Ke2 {[%emt 0:00:14]} Kc2 {[%emt 0:00:12]} 74. Rc7+ {[%emt 0:00:12]} Kb1 {[%emt 0:00:05]} 75. Rb7 {[%emt 0:00:32]} b2 {[%emt 0:00:30]} 76. Ra7 {[%emt 0:00:58]} Rd5 {[%emt 0:00:43]} 77. Ra8 {[%emt 0:00:29]} Kc2 {[%emt 0:00:23]} 78. Rc8+ {[%emt 0:00:11]} Kb3 {[%emt 0:00:05]} 79. Rb8+ {[%emt 0:00:08]} Kc3 {[%emt 0:00:06]} 80. Rb7 {[%emt 0:00:55]} Rd4 {[%emt 0:00:19]} 0-1